bitfinex/quotes_SOLUSD_20241118
["timestamp","ask_amount","ask_price","bid_price","bid_amount"]
[1731913445435,0.34465462,242.33,242.27,14.4465]
[1731913446051,32.15885911,242.31,242.27,14.4465]
[1731913446255,0.09367462,242.3,242.27,14.4465]
[1731913446459,0.34465462,242.3,242.23,4.1282]
[1731913446676,32.15885911,242.25,242.17,10.3232]
[1731913446845,32.25253373,242.23,242.17,10.3232]
[1731913447036,0.09367462,242.2,242.13,4.13]
[1731913447357,0.09367462,242.16,242.11,10.3255]
[1731913447564,0.09367462,242.16,242.08,32.15885911]
[1731913447565,0.34465462,242.16,242.09,4.1306]
[1731913447933,0.34465462,242.14,242.06,32.15885911]
[1731913448246,0.09367462,242.06,241.99,14.463]
[1731913448438,0.09367462,242.04,241.99,10.3308]
[1731913448635,32.15885911,242.03,241.99,10.3308]
[1731913449275,0.09367462,242.04,241.99,14.4632]
[1731913449445,0.09367462,242.04,241.99,10.3308]
[1731913449991,0.09367462,242.06,241.99,10.3308]
[1731913450260,0.25098,242.1,242.02,34.63767322]
[1731913450852,0.21916462,242.09,242.0,34.63767322]
[1731913451040,0.09367462,242.07,242.02,34.63767322]
[1731913451250,0.09367462,242.07,242.0,54.63767322]
[1731913451566,0.21916462,242.07,242.01,4.132]
[1731913452066,6.4146,242.16,242.01,4.132]
[1731913452067,0.12549,242.15,242.06,34.63767322]
[1731913452564,0.09367462,242.14,242.08,34.63767322]
[1731913453262,0.09367462,242.14,242.06,34.63767322]
[1731913453465,0.12549,242.13,242.04,34.63767322]
[1731913453649,0.12549,242.13,242.06,34.63767322]
[1731913453853,0.09367462,242.12,242.06,34.63767322]
[1731913455271,0.09367462,242.08,242.0,34.63767322]
[1731913455643,34.73134784,242.06,241.96,34.63767322]
[1731913455843,0.34465462,242.02,241.94,38.77077322]
[1731913456044,0.09367462,242.0,241.93,10.3333]
[1731913456270,0.21916462,242.0,241.93,10.3333]
[1731913456743,0.21916462,241.98,241.93,10.3333]
[1731913456943,0.21916462,241.98,241.9,38.77137322]
[1731913457139,0.21916462,241.98,241.87,10.3359]
[1731913457140,0.09367462,241.94,241.88,34.63767322]
[1731913457364,0.21916462,241.94,241.88,34.63767322]
[1731913457571,0.09367462,241.94,241.9,34.63767322]
[1731913458269,0.34465462,241.98,241.88,34.63767322]
[1731913458565,0.34465462,241.98,241.76,0.1]
[1731913458566,0.21916462,241.9,241.82,34.63767322]
[1731913458784,0.34465462,241.9,241.82,34.63767322]
[1731913458944,0.34465462,241.84,241.75,14.4775]
[1731913459385,0.34465462,241.84,241.76,34.63767322]
[1731913459851,0.34465462,241.84,241.75,14.4775]
[1731913460058,0.34465462,241.84,241.63,0.1]
[1731913460059,0.21916462,241.8,241.72,34.63767322]
[1731913460254,0.21916462,241.78,241.7,34.63767322]
[1731913461247,0.21916462,241.78,241.71,4.1371]
[1731913461642,0.09367462,241.74,241.69,10.3437]
[1731913461845,0.21916462,241.72,241.64,34.63767322]
[1731913462047,0.21916462,241.68,241.62,44.98407322]
[1731913462647,0.21916462,241.64,241.58,34.63767322]
[1731913463066,0.21916462,241.62,241.56,34.63767322]
[1731913463266,0.09367462,241.6,241.56,34.63767322]
[1731913463447,0.21916462,241.6,241.55,10.3494]
[1731913463845,0.21916462,241.58,241.52,34.63767322]
[1731913464049,0.21916462,241.56,241.52,34.63767322]
[1731913464777,0.12549,241.62,241.54,34.63767322]
[1731913465086,0.09367462,241.61,241.54,34.63767322]
[1731913465255,0.09367462,241.59,241.54,38.77767322]
[1731913465579,0.12549,241.6,241.58,34.63767322]
[1731913465759,0.09367462,241.69,241.58,34.63767322]
[1731913466076,0.09367462,241.67,241.58,34.63767322]
[1731913466788,34.63767322,241.71,241.62,34.63767322]
[1731913466969,6.0143,241.79,241.7,34.63767322]
[1731913467149,6.0143,241.79,241.77,34.63767322]
[1731913467354,16.5248,241.86,241.77,34.63767322]
[1731913467556,16.5248,241.86,241.79,34.63767322]
[1731913467752,0.09367462,241.85,241.73,14.4789]
[1731913467968,0.09367462,241.85,241.78,34.63767322]
[1731913468170,51.16247322,241.86,241.78,34.63767322]
[1731913468377,16.5248,241.86,241.8,34.63767322]
[1731913468768,0.09367462,241.85,241.78,34.63767322]
[1731913469084,16.5248,241.86,241.79,34.63767322]
[1731913470085,0.09367462,241.85,241.79,34.63767322]
[1731913470276,16.5248,241.86,241.81,34.63767322]
[1731913470484,16.5248,241.86,241.83,34.63767322]
[1731913470988,6.0116,241.87,241.85,34.63767322]
[1731913471490,30.09367462,241.86,241.85,34.63767322]
[1731913471987,0.09367462,241.86,241.85,34.63767322]
[1731913472189,0.34465462,241.86,241.85,34.63767322]
[1731913472391,4.1332,241.94,241.85,34.63767322]
[1731913472563,4.1332,241.94,241.88,34.63767322]
[1731913472889,23.1364,241.95,241.88,34.63767322]
[1731913473064,23.1364,241.95,241.92,34.63767322]
[1731913473263,4.1323,242.0,241.94,34.63767322]
[1731913473465,4.22547462,242.02,241.94,34.63767322]
[1731913473878,38.86314784,242.02,241.92,34.63767322]
[1731913474075,38.86314784,242.02,241.83,10.3378]
[1731913474076,0.09367462,241.97,241.88,34.63767322]
[1731913474391,0.34465462,241.97,241.88,34.63767322]
[1731913474596,0.34465462,241.95,241.86,34.63767322]
[1731913474886,24.12153862,241.95,241.84,34.63767322]
[1731913475089,0.25098,241.93,241.86,34.63767322]
[1731913475264,0.09367462,241.92,241.86,34.63767322]
[1731913475463,0.09367462,241.88,241.86,34.63767322]
[1731913475663,0.09367462,241.88,241.81,10.3384]
[1731913475664,0.09367462,241.86,241.84,34.63767322]
[1731913476085,0.09367462,241.82,241.8,34.63767322]
[1731913476291,0.09367462,241.84,241.8,34.63767322]
[1731913476481,0.09367462,241.84,241.82,34.63767322]
[1731913477269,0.09367462,241.84,241.8,34.63767322]
[1731913477673,0.09367462,241.84,241.83,34.63767322]
[1731913477892,34.63767322,241.97,241.83,34.63767322]
[1731913478072,159.1,242.02,241.89,34.63767322]
[1731913478073,34.63767322,241.99,241.89,34.63767322]
[1731913478582,0.09367462,241.94,241.85,34.63767322]
[1731913478781,34.63767322,241.93,241.83,34.63767322]
[1731913478989,0.09367462,241.9,241.81,34.63767322]
[1731913479195,0.34465462,241.88,241.81,34.63767322]
[1731913479369,0.34465462,241.88,241.79,34.63767322]
[1731913479370,4.47905462,241.88,241.79,34.63767322]
[1731913479691,0.34465462,241.86,241.77,34.63767322]
[1731913480596,0.34465462,241.8,241.71,34.63767322]
[1731913482077,0.34465462,241.8,241.75,34.63767322]
[1731913482278,0.34465462,241.8,241.77,34.63767322]
[1731913482485,0.34465462,241.8,241.75,34.63767322]
[1731913483093,0.34465462,241.8,241.73,34.63767322]
[1731913483596,39.11792784,241.8,241.71,34.63767322]
[1731913484173,39.11792784,241.8,241.6,0.1]
[1731913484174,0.1,241.35,241.15,0.1]
[1731913484495,0.25098,241.27,241.19,30.0]
[1731913484677,0.1,241.39,241.15,0.1]
[1731913485002,0.1,241.39,241.03,0.1]
[1731913485003,0.21916462,241.34,241.09,0.1]
[1731913485304,0.09367462,241.13,241.08,10.37]
[1731913485598,0.22549,241.12,241.08,10.206268]
[1731913485898,34.63767322,241.09,241.04,4.1486]
[1731913486191,34.63767322,241.05,241.02,30.0]
[1731913486396,34.63767322,241.03,241.02,30.0]
[1731913486593,64.63767322,241.03,241.02,30.0]
[1731913487392,34.63767322,241.05,241.03,4.1488]
[1731913487598,34.63767322,241.04,241.02,30.0]
[1731913487985,0.21916462,241.03,241.02,30.0]
[1731913488195,34.95683784,241.03,241.02,30.0]
[1731913488489,0.31916462,241.03,241.02,30.0]
[1731913489276,0.21916462,241.03,241.02,30.0]
[1731913489506,34.63767322,241.04,241.02,30.0]
[1731913489674,0.21916462,241.03,241.02,30.0]
[1731913489878,34.63767322,241.04,241.02,30.0]
[1731913490601,0.31916462,241.03,241.02,30.0]
[1731913490805,34.63767322,241.04,241.02,30.0]
[1731913491182,34.22287315,241.04,241.02,30.0]
[1731913491385,34.63767322,241.04,241.02,30.0]
[1731913492092,34.63767322,241.07,241.02,30.0]
[1731913492300,0.1,241.06,241.02,30.0]
[1731913492786,34.63767322,241.07,241.03,4.1488]
[1731913492992,34.63767322,241.09,241.03,4.1488]
[1731913493798,0.1,241.08,241.03,14.5209]
[1731913494193,34.63767322,241.09,241.03,14.5209]
[1731913494515,34.63767322,241.09,241.04,23.776884]
[1731913494818,34.63767322,241.09,241.05,4.1485]
[1731913495702,34.73767322,241.07,241.02,34.1489]
[1731913495910,34.63767322,241.04,241.02,34.1489]
[1731913496113,0.1,241.03,241.02,30.0]
[1731913496484,35.08232784,241.03,241.02,30.0]
[1731913497000,30.44465462,241.03,241.02,30.0]
[1731913497205,30.19367462,241.03,241.02,30.0]
[1731913497389,0.1,241.03,241.02,30.0]
[1731913497583,35.08232784,241.03,241.02,30.0]
[1731913497807,0.44465462,241.03,241.02,30.0]
[1731913499011,0.22549,241.03,241.02,30.0]
[1731913499193,0.1,241.03,241.02,30.0]
[1731913500296,0.44465462,241.03,241.02,30.0]
[1731913500494,30.44465462,241.03,241.02,30.0]
[1731913500902,88.85921184,241.03,241.02,30.0]
[1731913501193,65.08232784,241.03,241.02,30.0]
[1731913502530,30.31916462,241.03,241.02,30.0]
[1731913502815,30.1,241.03,241.02,30.0]
[1731913503389,0.1,241.03,241.02,30.0]
[1731913504921,0.1,241.09,241.02,34.149]
[1731913505209,0.1,241.04,241.02,44.5215]
[1731913505412,0.1,241.06,241.02,44.5215]
[1731913505586,34.93067611,241.06,241.02,44.5215]
[1731913506223,0.1,241.1,241.02,44.5215]
[1731913506397,0.1,241.08,241.02,44.5215]
[1731913506712,0.1,241.03,241.02,40.3725]
[1731913506912,35.03067611,241.05,241.02,44.5215]
[1731913507919,0.1,241.05,241.02,44.5215]
[1731913508223,35.03067611,241.16,241.05,23.776884]
[1731913508520,35.03067611,241.16,241.1,4.1476]
[1731913508693,35.03067611,241.18,241.1,4.1476]
[1731913508894,35.03067611,241.16,241.1,4.1476]
[1731913509225,34.93067611,241.14,241.1,14.5167]
[1731913509729,0.1,241.11,241.03,23.776884]
[1731913510050,34.93067611,241.05,241.03,4.1488]
[1731913510418,34.93067611,241.09,241.03,4.1488]
[1731913510595,34.93067611,241.11,241.04,10.3716]
[1731913511191,34.93067611,241.13,241.05,34.93067611]
[1731913511392,34.93067611,241.13,241.04,10.3716]
[1731913511819,34.93067611,241.11,241.04,10.3716]
[1731913512232,34.93067611,241.13,241.05,34.93067611]
[1731913512524,34.93067611,241.13,241.04,14.5202]
[1731913513519,34.91040715,241.12,241.04,14.5202]
[1731913514192,34.46415946,241.12,241.04,14.5202]
[1731913514398,34.56415946,241.16,241.07,34.46415946]
[1731913514602,0.1,241.27,241.04,14.5202]
[1731913514603,34.56415946,241.18,241.09,34.46415946]
[1731913515001,34.46415946,241.2,241.11,34.46415946]
[1731913515204,0.1,241.29,241.08,0.1]
[1731913515205,34.56415946,241.22,241.13,34.46415946]
[1731913515413,34.46415946,241.2,241.12,23.776884]
[1731913515613,34.46415946,241.26,241.17,34.46415946]
[1731913516001,34.46415946,241.26,241.18,23.776884]
[1731913516416,34.46415946,241.28,241.2,23.776884]
[1731913516616,34.46415946,241.28,241.21,4.1457]
[1731913519524,34.56415946,241.04,241.02,30.0]
[1731913520902,0.21916462,241.03,241.02,30.0]
[1731913521317,38.61215946,241.08,241.02,30.0]
[1731913521318,0.1,241.07,241.02,34.1488]
[1731913521643,34.46415946,241.08,241.02,44.5213]
[1731913521947,0.1,241.07,241.02,44.5213]
[1731913522308,0.1,241.05,241.02,40.3725]
[1731913522525,0.09367462,241.11,241.02,30.0]
[1731913522526,0.1,241.03,241.02,30.0]
[1731913522712,0.31916462,241.03,241.02,30.0]
[1731913522917,0.44465462,241.03,241.02,30.0]
[1731913523239,34.46415946,241.04,241.02,30.0]
[1731913523429,0.35098,241.03,241.02,30.0]
[1731913523737,0.44465462,241.03,241.02,30.0]
[1731913524033,4.59345462,241.03,241.02,30.0]
[1731913524244,0.1,241.03,241.02,30.0]
[1731913524417,34.56415946,241.03,241.02,30.0]
[1731913524617,34.65783408,241.03,241.02,30.0]
[1731913525061,34.85783408,241.03,241.02,29.7492]
[1731913525213,58.63471808,241.03,241.02,29.7492]
[1731913525714,88.76020808,241.03,241.02,29.7492]
[1731913526336,0.1,240.78,240.67,6.3282]
[1731913526631,0.1,240.81,240.77,34.46415946]
[1731913527014,0.1,240.84,240.77,34.46415946]
[1731913527240,0.12549,240.85,240.69,4.2546]
[1731913527241,0.1,240.8,240.69,14.5414]
[1731913527424,0.1,240.88,240.79,68.92831892]
[1731913527737,0.1,240.88,240.87,34.46415946]
[1731913527918,0.1,240.88,240.85,34.46415946]
[1731913528312,0.1,240.92,240.87,34.46415946]
[1731913528513,0.1,240.96,240.91,34.46415946]
[1731913528721,0.1,240.96,240.85,20.96]
[1731913528919,0.1,240.91,240.87,34.46415946]
[1731913529129,0.1,240.88,240.82,16.184]
[1731913529321,0.1,240.9,240.85,34.46415946]
[1731913529509,0.1,240.9,240.82,30.7174]
[1731913529510,0.1,240.9,240.87,34.46415946]
[1731913529716,0.1,240.9,240.72,6.3282]
[1731913530049,0.1,240.92,240.89,34.46415946]
[1731913530538,30.0,240.93,240.91,34.46415946]
[1731913530754,0.1,240.94,240.91,34.46415946]
[1731913531237,0.1,241.0,240.93,34.46415946]
[1731913531417,0.1,241.0,240.97,34.46415946]
[1731913531617,0.1,241.0,240.9,14.5288]
[1731913531917,0.1,241.0,240.63,34.46415946]
[1731913531918,0.1,240.76,240.63,34.46415946]
[1731913532122,0.1,240.73,240.63,34.46415946]
[1731913532443,0.1,240.8,240.68,34.46415946]
[1731913532740,0.1,240.8,240.7,34.46415946]
[1731913533317,0.1,240.85,240.73,34.46415946]
[1731913533537,0.1,240.82,240.67,10.3876]
[1731913533729,0.1,240.89,240.8,34.46415946]
[1731913533919,0.1,240.89,240.78,34.46415946]
[1731913534524,0.1,240.89,240.79,4.1529]
[1731913535033,4.2498,240.98,240.8,34.46415946]
[1731913535034,34.56415946,240.93,240.8,34.46415946]
[1731913535231,34.56415946,240.93,240.79,14.5353]
[1731913535232,0.1,240.93,240.83,23.776884]
[1731913535738,0.1,240.9,240.81,23.776884]
[1731913536244,0.1,240.9,240.8,34.46415946]
[1731913536245,0.1,240.94,240.85,23.776884]
[1731913536443,0.1,240.94,240.86,38.61585946]
[1731913536645,0.1,240.94,240.86,4.1517]
[1731913537139,34.46415946,240.96,240.86,4.1517]
[1731913537140,34.56415946,240.96,240.86,4.1517]
[1731913537844,34.46415946,240.96,240.86,14.5311]
[1731913538025,34.56415946,240.98,240.87,23.776884]
[1731913538648,0.1,241.0,240.92,34.46415946]
[1731913538816,0.1,241.0,240.88,34.46415946]
[1731913539141,0.1,240.95,240.86,14.5311]
[1731913539720,34.56415946,240.95,240.86,14.5311]
[1731913539920,34.56415946,240.97,240.86,14.5311]
[1731913540131,34.46415946,240.99,240.87,23.776884]
[1731913540330,0.1,240.98,240.88,34.46415946]
[1731913540548,34.46415946,240.99,240.88,34.46415946]
[1731913540722,16.59671,241.08,240.98,34.46415946]
[1731913540925,0.1,241.1,241.03,34.46415946]
[1731913541139,34.56415946,241.16,241.05,34.46415946]
[1731913541346,34.56415946,241.16,240.99,23.776884]
[1731913541347,34.56415946,241.19,241.07,34.56415946]
[1731913541543,0.1,241.14,241.07,34.46415946]
[1731913541846,0.1,241.28,240.94,35.18433553]
[1731913541847,0.1,241.21,241.12,34.46415946]
[1731913542144,0.1,241.21,241.15,38.61085946]
[1731913542345,0.1,241.13,241.01,0.1]
[1731913542556,0.1,241.18,241.11,34.46415946]
[1731913542850,0.1,241.18,240.94,34.46415946]
[1731913542851,0.1,241.16,241.13,34.46415946]
[1731913543149,0.1,241.17,241.09,34.46415946]
[1731913543322,32.439698,241.29,240.94,34.46415946]
[1731913543323,0.1,241.15,241.11,34.46415946]
[1731913543518,0.1,240.97,240.92,4.1507]
[1731913543745,0.1,240.95,240.92,4.1507]
[1731913544161,0.1,240.95,240.85,34.46415946]
[1731913544336,0.1,240.95,240.87,34.46415946]
[1731913545148,0.1,240.98,240.9,10.3777]
[1731913545342,0.1,240.99,240.9,10.3777]
[1731913545537,0.1,241.1,240.96,34.46415946]
[1731913545760,0.1,241.04,240.98,34.46415946]
[1731913546261,0.1,241.04,240.99,4.1495]
[1731913546961,0.1,241.02,240.99,14.5233]
[1731913547254,0.1,241.0,240.99,14.5233]
[1731913547457,0.1,240.95,240.91,10.3768]
[1731913547646,0.1,240.97,240.93,4.1504]
[1731913548458,0.1,240.95,240.93,4.1504]
[1731913548954,0.1,240.98,240.93,4.1504]
[1731913549169,0.1,241.0,240.94,34.46415946]
[1731913549336,0.1,240.99,240.92,44.84095946]
[1731913549741,0.1,241.02,240.92,44.84095946]
[1731913550073,0.1,240.99,240.94,34.46415946]
[1731913550240,0.1,241.02,240.94,34.46415946]
[1731913550565,159.1,241.12,240.96,34.46415946]
[1731913550566,0.1,241.04,240.96,34.46415946]
[1731913550740,0.1,241.02,240.96,34.46415946]
[1731913551070,0.1,241.04,240.96,34.46415946]
[1731913551363,0.1,241.02,240.97,4.1498]
[1731913551535,0.1,241.03,240.97,4.1498]
[1731913552140,0.1,241.03,240.97,14.5245]
[1731913552544,0.1,241.06,240.97,14.5245]
[1731913552760,0.19367462,241.06,240.97,14.5245]
[1731913553064,0.1,241.06,240.97,14.5245]
[1731913553241,0.1,241.02,240.97,14.5245]
[1731913553445,0.1,241.06,240.97,10.3747]
[1731913554456,0.1,241.09,240.99,34.46415946]
[1731913554659,0.1,241.06,240.99,34.46415946]
[1731913554849,0.1,241.06,240.97,44.83885946]
[1731913555239,0.1,241.08,240.97,44.83885946]
[1731913555547,0.1,241.06,240.99,4.1495]
[1731913555863,0.09367462,241.03,240.99,14.5233]
[1731913556045,0.1,241.0,240.99,14.5233]
[1731913556871,0.22549,241.02,240.99,14.5233]
[1731913557082,0.1,241.02,240.99,10.3738]
[1731913557240,0.1,240.92,240.79,15.8929]
[1731913557440,0.1,240.85,240.82,10.3811]
[1731913558365,0.1,240.84,240.82,10.3811]
[1731913558769,0.1,240.86,240.82,10.3811]
[1731913559551,4.1501,240.96,240.82,10.3811]
[1731913559552,0.1,240.9,240.85,34.46415946]
[1731913559756,34.46415946,241.0,240.85,34.46415946]
[1731913559757,0.1,240.92,240.85,34.46415946]
[1731913559953,0.1,240.92,240.87,34.46415946]
[1731913560349,0.1,240.92,240.84,34.46415946]
[1731913560551,0.1,240.92,240.86,34.46415946]
[1731913560751,0.09367462,240.97,240.86,34.46415946]
[1731913561075,4.1494,241.0,240.84,4.1521]
[1731913561076,0.25098,240.99,240.89,34.46415946]
[1731913561282,34.46415946,241.0,240.87,34.46415946]
[1731913561447,34.46415946,240.98,240.87,34.46415946]
[1731913561774,0.09367462,240.97,240.87,34.46415946]
[1731913561980,0.09367462,240.94,240.85,34.46415946]
[1731913562451,0.12549,240.94,240.85,34.46415946]
[1731913562652,0.12549,240.94,240.86,4.1517]
[1731913562848,0.12549,240.94,240.86,14.5311]
[1731913563158,4.1493,241.01,240.87,34.46415946]
[1731913563159,34.46415946,240.98,240.87,34.46415946]
[1731913563555,0.21916462,240.96,240.87,34.46415946]
[1731913563771,0.12549,240.95,240.87,34.46415946]
[1731913563970,0.12549,240.95,240.86,14.5311]
[1731913564176,0.34465462,240.93,240.86,14.5311]
[1731913564971,0.25098,240.93,240.88,34.46415946]
[1731913565180,0.25098,240.93,240.86,34.46415946]
[1731913565356,0.25098,240.93,240.75,4.1536]
[1731913565357,0.25098,240.93,240.89,34.46415946]
[1731913565559,0.25098,240.93,240.91,34.46415946]
[1731913565779,34.46415946,241.08,240.91,34.46415946]
[1731913565954,34.46415946,241.08,240.98,34.46415946]
[1731913566280,34.46415946,241.04,240.92,34.46415946]
[1731913566657,34.46415946,241.06,240.96,34.46415946]
[1731913566981,34.46415946,241.08,240.98,34.46415946]
[1731913567290,34.46415946,241.08,240.97,4.1498]
[1731913567291,34.46415946,241.13,241.04,34.46415946]
[1731913567578,34.46415946,241.13,241.0,34.46415946]
[1731913567579,0.09367462,241.1,241.0,34.46415946]
[1731913567750,34.46415946,241.11,241.0,34.46415946]
[1731913567951,34.46415946,241.07,240.97,14.5245]
[1731913568576,0.09367462,241.06,240.97,14.5245]
[1731913568958,0.09367462,241.04,240.97,14.5245]
[1731913569171,0.25098,241.03,241.0,34.46415946]
[1731913569353,0.12549,241.03,241.0,34.46415946]
[1731913569553,34.46415946,241.11,241.0,34.46415946]
[1731913569769,34.46415946,241.13,241.02,34.46415946]
[1731913570171,0.09367462,241.12,241.02,34.46415946]
[1731913570356,34.46415946,241.13,241.02,34.46415946]
[1731913570685,34.46415946,241.15,241.04,34.46415946]
[1731913571068,0.09367462,241.1,241.03,4.1488]
[1731913571269,34.46415946,241.05,240.94,34.46415946]
[1731913571469,0.09367462,241.04,240.94,34.46415946]
[1731913571773,34.46415946,241.07,240.96,34.46415946]
[1731913572082,0.25098,241.06,240.96,34.46415946]
[1731913572283,34.55783408,241.05,240.94,34.46415946]
[1731913572594,0.09367462,241.03,240.97,10.3744]
[1731913573976,0.09367462,241.01,240.92,38.61475946]
[1731913574287,0.09367462,241.01,240.92,48.99155946]
[1731913574491,0.09367462,240.99,240.92,48.99155946]
[1731913574694,34.46415946,241.13,240.99,34.46415946]
[1731913574993,34.56415946,241.06,240.93,34.46415946]
[1731913575161,0.1,241.12,240.98,34.46415946]
[1731913575363,38.61075946,241.16,241.05,34.46415946]
[1731913575663,4.1463,241.18,241.07,34.46415946]
[1731913575866,4.1463,241.18,241.09,34.46415946]
[1731913576089,40.63035946,241.21,240.94,34.46415946]
[1731913576090,4.1459,241.2,241.11,34.46415946]
[1731913576278,4.1456,241.22,241.15,34.46415946]
[1731913576472,4.1452,241.24,241.15,34.46415946]
[1731913577187,0.1,241.27,241.17,34.46415946]
[1731913577663,0.09367462,241.24,241.15,34.46415946]
[1731913577870,0.09367462,241.24,240.82,20.33843036]
[1731913577871,0.09367462,240.88,240.7,4.1545]
[1731913578081,0.1,240.89,240.7,4.1545]
[1731913578269,34.46415946,240.75,240.65,15.0901]
[1731913578477,0.25098,240.74,240.64,4.1555]
[1731913578685,34.71513946,240.74,240.64,4.1555]
[1731913579082,0.09367462,240.73,240.64,4.1555]
[1731913579393,0.25098,240.8,240.63,4.1557]
[1731913579582,30.25098,240.73,240.63,4.1557]
[1731913579784,0.09367462,240.72,240.63,4.1557]
[1731913579977,34.46415946,240.69,240.59,6.2041]
[1731913580179,34.46415946,240.63,240.51,4.1578]
[1731913580380,0.25098,240.62,240.56,34.46415946]
[1731913580579,0.25098,240.62,240.56,38.62105946]
[1731913580871,0.25098,240.62,240.57,34.59573171]
[1731913581305,0.25098,240.64,240.55,34.59573171]
[1731913581492,0.25098,240.66,240.55,34.59573171]
[1731913581702,0.25098,240.68,240.52,34.59573171]
[1731913582005,0.1,240.87,240.67,34.59573171]
[1731913582185,34.59573171,240.83,240.72,34.59573171]
[1731913582394,34.59573171,240.78,240.69,34.59573171]
[1731913582578,0.1,240.96,240.67,0.1]
[1731913582900,0.09367462,240.9,240.68,0.1]
[1731913583097,0.1,240.91,240.68,0.1]
[1731913583289,0.1,240.91,240.66,23.876884]
[1731913583694,0.09367462,240.83,240.73,34.59573171]
[1731913583888,0.12549,240.63,240.53,5.2228386]
[1731913584199,34.59573171,240.54,240.41,4.1595]
[1731913584400,0.1,240.62,240.34,34.59573171]
[1731913584401,34.59573171,240.47,240.42,10.3984]
[1731913584602,0.1,240.59,240.42,10.3984]
[1731913584787,34.59573171,240.49,240.42,10.3984]
[1731913585406,34.59573171,240.51,240.42,10.3984]
[1731913585578,30.0,240.46,240.42,10.3984]
[1731913586184,34.59573171,240.55,240.43,34.59573171]
[1731913586495,0.12549,240.57,240.47,34.61910388]
[1731913586895,34.61910388,240.6,240.49,34.61910388]
[1731913587276,34.61910388,240.6,240.45,0.1]
[1731913587277,34.61910388,240.58,240.47,34.61910388]
[1731913587485,34.61910388,240.6,240.49,34.61910388]
[1731913587703,34.61910388,240.6,240.5,4.158]
[1731913588209,34.61910388,240.52,240.34,34.61910388]
[1731913588378,34.61910388,240.46,240.34,34.61910388]
[1731913588985,34.61910388,240.44,240.32,34.61910388]
[1731913589180,24.027864,240.43,240.34,34.61910388]
[1731913589620,0.25098,240.43,240.34,34.61910388]
[1731913589901,0.25098,240.45,240.36,34.61910388]
[1731913590202,6.5056,240.57,240.24,6.2469]
[1731913590203,23.776884,240.42,240.24,6.2469]
[1731913590409,34.61910388,240.5,240.27,4.1618]
[1731913590701,0.12549,240.44,240.34,34.61910388]
[1731913591083,0.12549,240.44,240.36,34.61910388]
[1731913591297,6.5056,240.57,240.3,0.1]
[1731913591298,34.61910388,240.49,240.38,34.61910388]
[1731913591485,34.61910388,240.51,240.38,34.71910388]
[1731913591694,0.1,240.64,240.35,10.4014]
[1731913591695,34.61910388,240.53,240.42,34.61910388]
[1731913592209,34.61910388,240.55,240.42,34.61910388]
[1731913592503,34.61910388,240.55,240.44,34.61910388]
[1731913593199,34.61910388,240.55,240.45,4.1588]
[1731913593511,34.61910388,240.55,240.45,14.5559]
[1731913594020,34.61910388,240.51,240.45,14.5559]
[1731913594313,34.61910388,240.57,240.46,34.61910388]
[1731913594486,34.61910388,240.55,240.45,14.5559]
[1731913594681,34.61910388,240.52,240.45,14.5559]
[1731913594901,0.09367462,240.62,240.47,34.61910388]
[1731913595129,0.12549,240.52,240.45,10.3971]
[1731913595403,0.12549,240.54,240.45,10.3971]
[1731913595611,34.61910388,240.55,240.45,10.3971]
[1731913596302,34.61910388,240.57,240.45,45.01620388]
[1731913596533,34.61910388,240.61,240.5,34.61910388]
[1731913597240,34.61910388,240.57,240.46,34.61910388]
[1731913597938,34.61910388,240.55,240.45,14.5559]
[1731913598236,0.12549,240.54,240.45,14.5559]
[1731913598425,34.61910388,240.51,240.45,14.5559]
[1731913598822,34.61910388,240.49,240.45,14.5559]
[1731913599209,0.12549,240.54,240.45,10.3971]
[1731913599210,34.61910388,240.51,240.45,10.3971]
[1731913599405,34.61910388,240.49,240.45,10.3971]
[1731913600320,34.61910388,240.47,240.45,10.3971]
[1731913601416,34.61910388,240.49,240.45,10.3971]
[1731913602138,34.61910388,240.55,240.45,10.3971]
[1731913602509,34.61910388,240.5,240.45,10.3971]
[1731913602916,34.61910388,240.48,240.45,10.3971]
[1731913605137,34.61910388,240.5,240.45,10.3971]